Workbook

Sheet Текущее пр-во
A1: материал | B1: партия материала | C1: краситель | D1: партия красителя | E1: добавки | F1: партия добавок | G1: ИК | H1: мастер смены | I1: номер заявки | J1: дата измерения | K1: №№ гнёзд | L1: размер: | M1: вес | N1: высота | O1: ширина в 1 сечении | P1: ширина во 2 сечении | Q1: внутренний диаметр обтюратора в 1 сеч | R1: внутренний диаметр обтюратора во 2 сеч | S1: внутренний диаметр резьбы в 1 сечении | T1: внутренний диаметр резьбы во 2 сечении | U1: внешний вид | V1: сопряжение с банкой | W1: овальность резьбы
L4: номинал | M4: 16.9 | N4: 28 | O4: 67.4 | P4: 67.4 | Q4: 55.85 | R4: 55.85 | S4: 53.65 | T4: 53.65 | U4: соответствие эталонному образцу | V4: ОК/NOK
L5: + | M5: 1.7 | N5: 0.17 | O5: 1.5 | P5: 1.5 | Q5: 0.25 | R5: 0.25 | S5: 0.25 | T5: 0.25
L6: - | M6: -1.7 | N6: -0.17 | O6: -1.5 | P6: -1.5 | Q6: -0.25 | R6: -0.25 | S6: -0.25 | T6: -0.25
L7: верхний предел | M7: =SUM(M4,M5) -> 18.6 | N7: =SUM(N4,N5) -> 28.17 | O7: =SUM(O4,O5) -> 68.9 | P7: 68.9 | Q7: =SUM(Q4,Q5) -> 56.1 | R7: =SUM(R4,R5) -> 56.1 | S7: 53.9 | T7: =SUM(T4,T5) -> 53.9 | W7: 0.5
L8: нижний предел | M8: =SUM(M4,M6) -> 15.2 | N8: =SUM(N4,N6) -> 27.83 | O8: =SUM(O4,O6) -> 65.9 | P8: 65.9 | Q8: =SUM(Q4,Q6) -> 55.6 | R8: =SUM(R4,R6) -> 55.6 | S8: 53.4 | T8: =SUM(T4,T6) -> 53.4 | W8: 0 | X8: Среднее значение за смену
L9: ср. знач. | M9: =AVERAGE(M12:M1048576) -> 16.65375 | N9: =AVERAGE(N12:N1048576) -> 28.083125 | O9: =AVERAGE(O12:O1048576) -> 67.321875 | P9: =AVERAGE(P12:P1048576) -> 67.1625 | Q9: =AVERAGE(Q12:Q1048576) -> 56.148125 | R9: =AVERAGE(R12:R1048576) -> 56.17875 | S9: =AVERAGE(S12:S1048576) -> 54.03625 | T9: =AVERAGE(T12:T1048576) -> 53.3875 | W9: =AVERAGE(W12:W1048576) -> 0.324375 | X9: вес | Y9: высота | Z9: ширина в 1 сечении | AA9: ширина во 2 сечении | AB9: внешний диаметр резьбы в 1 сечении | AC9: внешний диаметр резьбы во 2 сечении | AD9: внутренний диаметр резьбы в 1 сечении | AE9: внутренний диаметр резьбы во 2 сечении | AF9: овальность резьбы
L10: мин. знач. | M10: =MIN(M12:M1048576) -> 16.59 | N10: =MIN(N12:N1048576) -> 28.04 | O10: =MIN(O12:O1048576) -> 67.14 | P10: =MIN(P12:P1048576) -> 66.98 | Q10: =MIN(Q12:Q1048576) -> 56.06 | R10: =MIN(R12:R1048576) -> 56.12 | S10: =MIN(S12:S1048576) -> 53.94 | T10: =MIN(T12:T1048576) -> 53.28 | W10: =MIN(W12:W1048576) -> 0
L11: макс. знач. | M11: =MAX(M12:M1048576) -> 16.72 | N11: =MAX(N12:N1048576) -> 28.12 | O11: =MAX(O12:O1048576) -> 67.45 | P11: =MAX(P12:P1048576) -> 67.29 | Q11: =MAX(Q12:Q1048576) -> 56.19 | R11: =MAX(R12:R1048576) -> 56.28 | S11: =MAX(S12:S1048576) -> 54.15 | T11: =MAX(T12:T1048576) -> 53.47 | W11: =MAX(W12:W1048576) -> 0.85
W12: =ABS(S12-T12) -> 0 | X12: =AVERAGE(M12:M27) ->  | AF12: =AVERAGE(W12:W27) -> 0
W13: =ABS(S13-T13) -> 0
W14: =ABS(S14-T14) -> 0
W15: =ABS(S15-T15) -> 0
W16: =ABS(S16-T16) -> 0
W17: =ABS(S17-T17) -> 0
W18: 0
W19: 0
W20: 0
W21: 0
W22: 0
W23: 0
W24: 0
W25: 0
W26: 0
W27: =ABS(S27-T27) -> 0
G28: Михайлова Р. | J28: 2022-03-15 | K28: 1 | M28: 16.61 | N28: 28.08 | O28: 67.39 | P28: 67.09 | Q28: 56.18 | R28: 56.14 | S28: 53.94 | T28: 53.42 | W28: 0.52 | X28: =AVERAGE(M28:M43) -> 16.65375 | Y28: 28.083125 | Z28: 67.321875 | AA28: 67.1625 | AB28: 56.148125 | AC28: 56.17875 | AD28: 54.03625 | AE28: 53.3875 | AF28: =AVERAGE(W28:W43) -> 0.64875
K29: 2 | M29: 16.71 | N29: 28.08 | O29: 67.32 | P29: 66.98 | Q29: 56.11 | R29: 56.14 | S29: 54.08 | T29: 53.39 | W29: 0.69
K30: 3 | M30: 16.66 | N30: 28.05 | O30: 67.14 | P30: 67.19 | Q30: 56.06 | R30: 56.14 | S30: 53.97 | T30: 53.46 | W30: 0.51
K31: 4 | M31: 16.65 | N31: 28.1 | O31: 67.37 | P31: 67.17 | Q31: 56.15 | R31: 56.21 | S31: 53.96 | T31: 53.44 | W31: 0.52
K32: 5 | M32: 16.61 | N32: 28.07 | O32: 67.37 | P32: 67.25 | Q32: 56.14 | R32: 56.28 | S32: 54.05 | T32: 53.38 | W32: 0.67
K33: 6 | M33: 16.64 | N33: 28.11 | O33: 67.22 | P33: 67.23 | Q33: 56.17 | R33: 56.19 | S33: 54.02 | T33: 53.44 | W33: =ABS(S33-T33) -> 0.58
K34: 7 | M34: 16.67 | N34: 28.08 | O34: 67.18 | P34: 67.19 | Q34: 56.11 | R34: 56.18 | S34: 54 | T34: 53.47 | W34: 0.53
K35: 8 | M35: 16.64 | N35: 28.08 | O35: 67.4 | P35: 67.12 | Q35: 56.13 | R35: 56.26 | S35: 54.07 | T35: 53.38 | W35: 0.69
K36: 9 | M36: 16.6 | N36: 28.08 | O36: 67.45 | P36: 67.03 | Q36: 56.14 | R36: 56.18 | S36: 54.15 | T36: 53.3 | W36: 0.85
K37: 10 | M37: 16.67 | N37: 28.04 | O37: 67.31 | P37: 67.14 | Q37: 56.16 | R37: 56.13 | S37: 53.96 | T37: 53.46 | W37: 0.5
K38: 11 | M38: 16.72 | N38: 28.09 | O38: 67.33 | P38: 67.2 | Q38: 56.19 | R38: 56.16 | S38: 54.05 | T38: 53.34 | W38: 0.71
K39: 12 | M39: 16.66 | N39: 28.1 | O39: 67.42 | P39: 67.17 | Q39: 56.18 | R39: 56.17 | S39: 54.03 | T39: 53.37 | W39: 0.66
K40: 13 | M40: 16.6 | N40: 28.09 | O40: 67.34 | P40: 67.23 | Q40: 56.19 | R40: 56.17 | S40: 54.07 | T40: 53.37 | W40: 0.7
K41: 14 | M41: 16.72 | N41: 28.1 | O41: 67.25 | P41: 67.14 | Q41: 56.17 | R41: 56.12 | S41: 54.07 | T41: 53.33 | W41: 0.74
K42: 15 | M42: 16.71 | N42: 28.12 | O42: 67.35 | P42: 67.18 | Q42: 56.13 | R42: 56.17 | S42: 54.11 | T42: 53.37 | W42: 0.74
K43: 16 | M43: 16.59 | N43: 28.06 | O43: 67.31 | P43: 67.29 | Q43: 56.16 | R43: 56.22 | S43: 54.05 | T43: 53.28 | W43: =ABS(S43-T43) -> 0.77
